fUSD/lending_fUSD_20250201
["ID","MTS","AMOUNT","RATE_DAILY","PERIOD"]
[351200426,1738411847839,-770.2,0.00016849,2]
[351200427,1738411847848,-507.66224148,0.0001687,2]
[351200428,1738411847857,-166.2793039,0.00016873,2]
[351200429,1738411847868,-502.08687245,0.00016873,2]
[351200430,1738411847878,-162.75101795,0.00016873,2]
[351200431,1738411847888,-150.0,0.00016878,2]
[351200432,1738411847897,-666.0,0.00016879,2]
[351200433,1738411847907,-666.0,0.00016879,2]
[351200434,1738411847916,-151.0,0.00016879,2]
[351200435,1738411847926,-214.8075,0.00016879,2]
[351200436,1738411847936,-214.8075,0.00016879,2]
[351200437,1738411847945,-151.0,0.00016879,2]
[351200438,1738411847955,-183.091002,0.00016879,2]
[351200439,1738411847964,-500.0,0.00016879,2]
[351200440,1738411847974,-248.406269,0.00016879,2]
[351200441,1738411847983,-151.0,0.00016879,2]
[351200442,1738411847993,-151.0,0.00016879,2]
[351200443,1738411848002,-151.0,0.00016879,2]
[351200444,1738411848011,-270.346386,0.00016879,2]
[351200445,1738411848021,-151.0,0.00016879,2]
[351200446,1738411848030,-622.09,0.00016879,2]
[351200447,1738411848040,-622.09,0.00016879,2]
[351200448,1738411848051,-622.09,0.00016879,2]
[351200449,1738411848066,-622.09,0.00016879,2]
[351200450,1738411848075,-622.09,0.00016879,2]
[351200451,1738411848085,-622.09,0.00016879,2]
[351200452,1738411848095,-622.09,0.00016879,2]
[351200453,1738411848106,-622.09,0.00016879,2]
[351200454,1738411848116,-300.0,0.00016879,2]
[351200455,1738411848126,-666.0,0.00016879,2]
[351200456,1738411848136,-271.36435955,0.00016879,2]
[351200457,1738411848147,-149538.03760658,0.0001688,2]
[351200458,1738411848317,-426.57748511,0.0001688,2]
[351200459,1738411848330,-16520.80884652,0.0001688,2]
[351200460,1738411848341,-434.92799968,0.0001688,2]
[351200461,1738411848353,-266.54294648,0.0001688,2]
[351200462,1738411848364,-18000.20816387,0.0001688,2]
[351200463,1738411848377,-1930.4731242,0.0001688,2]
[351200464,1738411848389,-3142.16174804,0.0001688,2]
[351200465,1738411848459,-13170.0,0.0001688,2]
[351200466,1738411848471,-1941.69667165,0.0001688,2]
[351200467,1738411848483,-2537.5,0.0001688,2]
[351200468,1738411848589,-340.3593,0.0001688,2]
[351200469,1738412027113,183.31,0.00023,120]
[351200472,1738412045871,205.75,0.00010137,2]
[351200478,1738412896618,156.13,0.00010137,2]
[351200502,1738413032371,-272.05834772,0.00010959,2]
[351200503,1738413032381,-150.0,0.00011165,2]
[351200504,1738413032391,-150.0,0.00011717,2]
[351200505,1738413032400,-150.0,0.00012055,2]
[351200506,1738413032410,-706.44,0.00012247,2]
[351200507,1738413032419,-150.0,0.00012368,2]
[351200508,1738413032429,-320.97946211,0.00012608,2]
[351200509,1738413032439,-150.0,0.00012663,2]
[351200510,1738413032451,-2.89804657,0.00012766,2]
[351200511,1738413032503,-147.10195343,0.00012766,2]
[351200512,1738413032512,-150.0,0.00012807,2]
[351200513,1738413032521,-150.0,0.00012838,2]
[351200514,1738413032532,-135.76724754,0.0001285,2]
[351200515,1738413032546,-14.23275246,0.0001285,2]
[351200516,1738413032555,-150.0,0.00012943,2]
[351200517,1738413032564,-150.0,0.00012983,2]
[351200518,1738413032574,-150.0,0.00012996,2]
[351200519,1738413032583,-150.0,0.00013009,2]
[351200520,1738413032592,-150.0,0.00013054,2]
[351200521,1738413032602,-150.0,0.00013057,2]
[351200522,1738413032611,-15.41158754,0.0001313,2]
[351200523,1738413032696,-134.58841246,0.0001313,2]
[351200524,1738413032705,-150.0,0.00013425,2]
[351200525,1738413032715,-150.0,0.00013566,2]
[351200526,1738413032725,-150.0,0.0001358,2]
[351200527,1738413032735,-150.0,0.00013684,2]
[351200528,1738413032745,-150.0,0.00013921,2]
[351200529,1738413032754,-124.13331944,0.00013995,2]
[351200530,1738413032779,-25.86668056,0.00013995,2]
[351200531,1738413032788,-150.0,0.00014086,2]
[351200532,1738413032798,-361.61,0.00014133,2]
[351200533,1738413032807,-150.0,0.00014134,2]
[351200534,1738413032816,-214.11,0.00014136,2]
[351200535,1738413032826,-150.0,0.00014481,2]
[351200536,1738413032836,-150.0,0.00014486,2]
[351200537,1738413032845,-706.44,0.00014511,2]
[351200538,1738413032856,-150.0,0.00014602,2]
[351200539,1738413032866,-420.01537342,0.00014616,2]
[351200540,1738413032875,-516.57,0.00014741,2]
[351200541,1738413032885,-150.0,0.00014808,2]
[351200542,1738413032894,-150.0,0.00014835,2]
[351200543,1738413032904,-1000.0,0.00014861,2]
[351200544,1738413032914,-181.6,0.00014902,2]
[351200545,1738413032923,-123.78794602,0.0001496,2]
[351200546,1738413032935,-82.21205398,0.0001496,2]
[351200547,1738413032944,-150.0,0.00014974,2]
[351200548,1738413032954,-150.0,0.00014994,2]
[351200549,1738413032963,-150.0,0.00015016,2]
[351200550,1738413032973,-150.0,0.00015106,2]
[351200551,1738413032982,-206.0,0.000152,2]
[351200553,1738413032992,-891.94275929,0.00015205,2]
[351200554,1738413033001,-250.0,0.00015303,2]
[351200556,1738413033011,-206.0,0.0001545,2]
[351200557,1738413033020,-150.0,0.00015516,2]
[351200558,1738413033030,-4051.03647847,0.0001558,2]
[351200559,1738413033040,-206.0,0.0001569,2]
[351200560,1738413033051,-150.0,0.00015694,2]
[351200561,1738413033061,-150.0,0.00015739,2]
[351200562,1738413033071,-150.0,0.00015759,2]
[351200563,1738413033082,-150.0,0.00015802,2]
[351200564,1738413033092,-150.0,0.00015835,2]
[351200565,1738413033101,-1481.85199163,0.00015858,2]
[351200566,1738413033111,-150.0,0.0001587,2]
[351200567,1738413033120,-214.11,0.00015903,2]
[351200568,1738413033130,-206.0,0.0001594,2]
[351200569,1738413033140,-150.0,0.00016011,2]
[351200570,1738413033150,-1511.0,0.00016052,2]
[351200571,1738413033160,-150.0,0.00016057,2]
[351200572,1738413033170,-150.0,0.00016087,2]
[351200573,1738413033180,-150.0,0.0001615,2]
[351200574,1738413033190,-890.45,0.00016179,2]
[351200575,1738413033199,-300.37,0.00016179,2]
[351200576,1738413033208,-984.07,0.00016179,2]
[351200577,1738413033218,-150.0,0.00016179,2]
[351200578,1738413033227,-298.46,0.00016179,2]
[351200579,1738413033236,-150.0,0.00016179,2]
[351200580,1738413033247,-150.0,0.00016179,2]
[351200581,1738413033257,-984.07,0.00016179,2]
[351200582,1738413033266,-150.0,0.00016179,2]
[351200583,1738413033275,-984.07,0.00016179,2]
[351200584,1738413033285,-150.0,0.00016179,2]
[351200585,1738413033294,-298.46,0.00016179,2]
[351200586,1738413033304,-652.26,0.00016179,2]
[351200587,1738413033313,-150.0,0.00016179,2]
[351200588,1738413033323,-150.0,0.00016179,2]
[351200589,1738413033332,-298.46,0.00016179,2]
[351200590,1738413033342,-206.0,0.0001618,2]
[351200591,1738413033353,-150.0,0.00016185,2]
[351200592,1738413033368,-150.0,0.00016221,2]
[351200593,1738413033377,-891.9503,0.00016238,2]
[351200594,1738413033395,-150.0,0.00016332,2]
[351200595,1738413033405,-5462.44396871,0.00016338,2]
[351200596,1738413033417,-42414.93403129,0.00016338,2]
[351200597,1738413033427,-26720.1654,0.00016338,2]
[351200598,1738413033437,-244.25398816,0.00016338,2]
[351200599,1738413033447,-150.0,0.00016371,2]
[351200600,1738413033457,-181.6,0.00016393,2]
[351200601,1738413033469,-1000.0,0.000164,2]
[351200602,1738413033480,-206.0,0.0001643,2]
[351200603,1738413033490,-500.0,0.00016438,2]
[351200604,1738413033501,-500.0,0.00016438,2]
[351200605,1738413033512,-500.0,0.00016438,2]
[351200606,1738413033522,-500.0,0.00016438,2]
[351200607,1738413033532,-500.0,0.00016438,2]
[351200608,1738413033543,-500.0,0.00016438,2]
[351200609,1738413033556,-500.0,0.00016438,2]
[351200610,1738413033567,-500.0,0.00016438,2]
[351200611,1738413033577,-500.0,0.00016438,2]
[351200612,1738413033587,-500.0,0.00016438,2]
[351200613,1738413033597,-500.0,0.00016438,2]
[351200614,1738413033608,-500.0,0.00016438,2]
[351200615,1738413033618,-1069.21,0.00016438,7]
[351200616,1738413033628,-500.0,0.00016438,2]
[351200617,1738413033637,-500.0,0.00016438,2]
[351200618,1738413033648,-500.0,0.00016438,2]
[351200619,1738413033658,-500.0,0.00016438,2]
[351200620,1738413033668,-500.0,0.00016438,2]
[351200621,1738413033677,-500.0,0.00016438,2]
[351200622,1738413033687,-500.0,0.00016438,2]
[351200623,1738413033697,-500.0,0.00016438,2]
[351200624,1738413033707,-681.71,0.00016438,2]
[351200625,1738413033716,-500.0,0.00016438,2]
[351200626,1738413033727,-635.43,0.00016438,2]
[351200627,1738413033737,-711.09,0.00016438,2]
[351200628,1738413033747,-500.0,0.00016438,2]
[351200629,1738413033757,-500.0,0.00016438,2]
[351200630,1738413033767,-579.85,0.00016438,2]
[351200631,1738413033777,-500.0,0.00016438,2]
[351200632,1738413033787,-500.0,0.00016438,2]
[351200633,1738413033796,-500.0,0.00016438,2]
[351200634,1738413033807,-150.0,0.00016473,2]
[351200635,1738413033820,-2500.0,0.00016474,2]
[351200636,1738413033830,-2285.3964,0.00016475,2]
[351200637,1738413033844,-3023.244,0.00016528,2]
[351200638,1738413033855,-167.116,0.00016528,2]
[351200639,1738413033865,-275.96267494,0.00016534,2]
[351200640,1738413033875,-879.73,0.00016573,2]
[351200641,1738413033886,-500.0,0.00016573,2]
[351200642,1738413033896,-780.52,0.00016573,2]
[351200643,1738413033907,-959.68,0.00016573,2]
[351200644,1738413033917,-639.82,0.00016573,2]
[351200645,1738413033926,-1424.81,0.00016573,2]
[351200646,1738413033937,-840.48,0.00016573,2]
[351200647,1738413033947,-1186.34,0.00016573,2]
[351200648,1738413033956,-892.15,0.00016573,2]
[351200649,1738413033967,-500.0,0.00016573,2]
[351200650,1738413033978,-513.14,0.00016573,2]
[351200651,1738413033988,-500.0,0.00016573,2]
[351200652,1738413033998,-760.43,0.00016573,2]
[351200653,1738413034007,-1453.72,0.00016573,2]
[351200654,1738413034018,-1404.61,0.00016573,2]
[351200655,1738413034027,-947.96,0.00016573,2]
[351200656,1738413034038,-500.0,0.00016573,2]
[351200657,1738413034048,-877.76,0.00016573,2]
[351200658,1738413034058,-500.0,0.00016573,2]
[351200659,1738413034068,-500.0,0.00016573,2]
[351200660,1738413034078,-500.0,0.00016573,2]
[351200661,1738413034088,-2304.75,0.00016573,2]
[351200662,1738413034097,-1247.29,0.00016573,2]
[351200663,1738413034107,-588.44,0.00016573,2]
[351200664,1738413034116,-500.0,0.00016573,2]
[351200665,1738413034125,-500.0,0.00016573,2]
[351200666,1738413034135,-500.0,0.00016573,2]
[351200667,1738413034144,-500.0,0.00016573,2]
[351200668,1738413034153,-863.07,0.00016573,2]
[351200669,1738413034162,-500.0,0.00016574,2]
[351200670,1738413034172,-500.0,0.00016574,2]
[351200671,1738413034181,-500.0,0.00016574,2]
[351200672,1738413034191,-500.0,0.00016574,2]
[351200673,1738413034200,-500.0,0.00016574,2]
[351200674,1738413034210,-500.0,0.00016574,2]
[351200675,1738413034219,-500.0,0.00016574,2]
[351200676,1738413034229,-500.0,0.00016574,2]
[351200677,1738413034238,-500.0,0.00016574,2]
[351200678,1738413034248,-500.0,0.00016574,2]
[351200679,1738413034257,-500.0,0.00016574,2]
[351200680,1738413034267,-500.0,0.00016574,2]
[351200681,1738413034277,-500.0,0.00016574,2]
[351200682,1738413034286,-500.0,0.00016574,2]
[351200683,1738413034296,-500.0,0.00016574,2]
[351200684,1738413034305,-500.0,0.00016574,2]
[351200685,1738413034315,-500.0,0.00016574,2]
[351200686,1738413034324,-500.0,0.00016574,2]
[351200687,1738413034334,-500.0,0.00016574,2]
[351200688,1738413034344,-513.21668853,0.00016574,2]
[351200689,1738413034353,-500.0,0.00016574,2]
[351200690,1738413034363,-500.0,0.00016574,2]
[351200691,1738413034372,-500.0,0.00016574,2]
[351200692,1738413034381,-500.0,0.00016574,2]
[351200693,1738413034391,-500.0,0.00016574,2]
[351200694,1738413034401,-500.0,0.00016574,2]
[351200695,1738413034411,-500.0,0.00016574,2]
[351200696,1738413034420,-500.0,0.00016574,2]
[351200697,1738413034429,-500.0,0.00016574,2]
[351200698,1738413034438,-500.0,0.00016574,2]
[351200699,1738413034448,-500.0,0.00016574,2]
[351200700,1738413034459,-593.34,0.00016574,2]
[351200701,1738413034473,-500.0,0.00016574,2]
[351200702,1738413034482,-607.68,0.00016574,2]
[351200703,1738413034491,-593.1,0.00016574,2]
[351200704,1738413034500,-509.33,0.00016574,2]
[351200705,1738413034510,-2275.3,0.00016574,2]
[351200706,1738413034519,-568.82,0.00016574,2]
[351200707,1738413034527,-1408.94,0.00016574,2]
[351200708,1738413034537,-671.33,0.00016574,2]
[351200709,1738413034547,-1032.49,0.00016574,2]
[351200710,1738413034557,-538.9,0.00016574,2]
[351200711,1738413034565,-1431.4,0.00016574,2]
[351200712,1738413034574,-500.0,0.00016574,2]
[351200713,1738413034583,-500.0,0.00016574,2]
[351200714,1738413034592,-500.0,0.00016574,2]
[351200715,1738413034601,-500.0,0.00016574,2]
[351200716,1738413034610,-500.0,0.00016574,2]
[351200717,1738413034619,-500.0,0.00016574,2]
[351200718,1738413034628,-2360.29,0.00016574,2]
[351200719,1738413034637,-795.87,0.00016574,2]
[351200720,1738413034646,-500.0,0.00016574,2]
[351200721,1738413034655,-789.989387,0.00016574,2]
[351200722,1738413034664,-856.8,0.00016574,2]
[351200723,1738413034673,-500.0,0.00016574,2]
[351200724,1738413034682,-1350.97,0.00016574,2]
[351200725,1738413034691,-2494.3,0.00016574,2]
[351200726,1738413034701,-500.0,0.00016574,2]
[351200727,1738413034710,-807.394882,0.00016574,2]
[351200728,1738413034720,-1724.22,0.00016574,2]
[351200729,1738413034730,-1291.74,0.00016574,2]
[351200730,1738413034739,-547.67,0.00016574,2]
[351200731,1738413034749,-500.0,0.00016574,2]
[351200732,1738413034758,-500.0,0.00016574,2]
[351200733,1738413034768,-661.63,0.00016574,2]
[351200734,1738413034777,-1224.26,0.00016574,2]
[351200735,1738413034786,-1285.26,0.00016574,2]
[351200736,1738413034795,-1888.45,0.00016574,2]
[351200737,1738413034805,-750.29,0.00016574,2]
[351200738,1738413034814,-500.0,0.00016574,2]
[351200739,1738413034823,-1298.83,0.00016574,2]
[351200740,1738413034832,-500.0,0.00016574,2]
[351200741,1738413034842,-500.0,0.00016574,2]
[351200742,1738413034851,-500.0,0.00016574,2]
[351200743,1738413034861,-559.58,0.00016574,2]
[351200744,1738413034870,-500.0,0.00016574,2]
[351200745,1738413034879,-1611.62,0.00016574,2]
[351200746,1738413034889,-1837.49,0.00016574,2]
[351200747,1738413034898,-1262.69,0.00016574,2]
[351200748,1738413034907,-500.0,0.00016574,2]
[351200749,1738413035094,-944.31,0.00016574,2]
[351200750,1738413035104,-500.0,0.00016574,2]
[351200751,1738413035113,-703.87,0.00016574,2]
[351200752,1738413035122,-500.0,0.00016574,2]
[351200753,1738413035132,-501.38,0.00016574,2]
[351200754,1738413035141,-500.0,0.00016574,2]
[351200755,1738413035150,-500.0,0.00016574,2]
[351200756,1738413035160,-1126.2,0.00016574,2]
[351200757,1738413035169,-500.0,0.00016574,2]
[351200758,1738413035178,-500.0,0.00016574,2]
[351200759,1738413035187,-500.0,0.00016574,2]
[351200760,1738413035196,-1470.32,0.00016574,2]
[351200761,1738413035205,-500.0,0.00016574,2]
[351200762,1738413035215,-668.74,0.00016574,2]
[351200763,1738413035224,-500.0,0.00016574,2]
[351200764,1738413035234,-500.0,0.00016574,2]
[351200765,1738413035243,-500.0,0.00016574,2]
[351200766,1738413035251,-500.0,0.00016574,2]
[351200767,1738413035260,-500.0,0.00016574,2]
[351200768,1738413035269,-776.68,0.00016574,2]
[351200769,1738413035278,-500.0,0.00016574,2]
[351200770,1738413035287,-860.88,0.00016574,2]
[351200771,1738413035296,-587.89,0.00016574,2]
[351200772,1738413035305,-1637.45,0.00016574,2]
[351200773,1738413035314,-459.42458512,0.00016574,2]
[351200774,1738413035323,-500.0,0.00016574,2]
[351200775,1738413035331,-500.0,0.00016574,2]
[351200776,1738413035340,-500.0,0.00016574,2]
[351200777,1738413035349,-500.0,0.00016574,2]
[351200778,1738413035359,-500.0,0.00016574,2]
[351200779,1738413035369,-500.0,0.00016574,2]
[351200780,1738413035379,-500.0,0.00016574,2]
[351200781,1738413035387,-748.38,0.00016574,2]
[351200782,1738413035397,-500.0,0.00016574,2]
[351200783,1738413035406,-500.0,0.00016574,2]
[351200784,1738413035415,-928.26,0.00016574,2]
[351200785,1738413035424,-551.30764182,0.00016574,2]
[351200786,1738413035433,-500.0,0.00016574,2]
[351200787,1738413035441,-536.34575144,0.00016574,2]
[351200788,1738413035450,-558.78765455,0.00016574,2]
[351200789,1738413035461,-925.67,0.00016574,2]
[351200790,1738413035473,-457.83022756,0.00016574,2]
[351200791,1738413035482,-2023.85,0.00016574,2]
[351200792,1738413035491,-916.44,0.00016574,2]
[351200793,1738413035500,-500.0,0.00016574,2]
[351200794,1738413035510,-4617.86,0.00016574,2]
[351200795,1738413035519,-500.0,0.00016574,2]
[351200796,1738413035528,-1603.32,0.00016574,2]
[351200797,1738413035538,-851.47,0.00016574,2]
[351200798,1738413035547,-500.0,0.00016574,2]
[351200799,1738413035557,-1657.55,0.00016574,2]
[351200800,1738413035566,-927.51,0.00016574,2]
[351200801,1738413035575,-500.0,0.00016574,2]
[351200802,1738413035585,-1375.94,0.00016574,2]
[351200803,1738413035595,-500.0,0.00016574,2]
[351200804,1738413035604,-500.0,0.00016574,2]
[351200805,1738413035614,-500.0,0.00016574,2]
[351200806,1738413035624,-500.0,0.00016575,2]
[351200807,1738413035634,-500.0,0.00016575,2]
[351200808,1738413035644,-500.0,0.00016575,2]
[351200809,1738413035653,-500.0,0.00016575,2]
[351200810,1738413035662,-500.0,0.00016575,2]
[351200811,1738413035672,-500.0,0.00016575,2]
[351200812,1738413035682,-500.0,0.00016575,2]
[351200813,1738413035691,-500.0,0.00016575,2]
[351200814,1738413035700,-500.0,0.00016575,2]
[351200815,1738413035710,-500.0,0.00016575,2]
[351200816,1738413035719,-500.0,0.00016575,2]
[351200817,1738413035729,-500.0,0.00016575,2]
[351200818,1738413035737,-500.0,0.00016575,2]
[351200819,1738413035746,-500.0,0.00016575,2]
[351200820,1738413035756,-500.0,0.00016575,2]
[351200821,1738413035765,-500.0,0.00016575,2]
[351200822,1738413035775,-500.0,0.00016575,2]
[351200823,1738413035784,-500.0,0.00016575,2]
[351200824,1738413035794,-500.0,0.00016575,2]
[351200825,1738413035803,-681.71,0.00016575,2]
[351200826,1738413035812,-500.0,0.00016575,2]
[351200827,1738413035821,-635.43,0.00016575,2]
[351200828,1738413035831,-711.09,0.00016575,2]
[351200829,1738413035840,-500.0,0.00016575,2]
[351200830,1738413035849,-500.0,0.00016575,2]
[351200831,1738413035859,-579.85,0.00016575,2]
[351200832,1738413035868,-500.0,0.00016575,2]
[351200833,1738413035877,-500.0,0.00016575,2]
[351200834,1738413035887,-500.0,0.00016575,2]
[351200835,1738413035897,-5000.0,0.00016611,2]
[351200836,1738413035907,-500.0,0.0001663,2]
[351200837,1738413035917,-150.0,0.0001664,2]
[351200838,1738413035927,-1000.0,0.00016643,2]
[351200839,1738413035936,-150.74,0.00016658,30]
[351200840,1738413035946,-206.0,0.0001667,2]
[351200841,1738413035956,-991.5576,0.0001668,2]
[351200842,1738413035965,-1000.0,0.00016708,2]
[351200843,1738413035975,-879.73,0.0001671,2]
[351200844,1738413035985,-500.0,0.0001671,2]
[351200845,1738413035995,-780.52,0.0001671,2]
[351200846,1738413036004,-959.68,0.0001671,2]
[351200847,1738413036014,-639.82,0.0001671,2]
[351200848,1738413036024,-1424.81,0.0001671,2]
[351200849,1738413036034,-840.48,0.0001671,2]
[351200850,1738413036043,-1186.34,0.0001671,2]
[351200851,1738413036054,-892.15,0.0001671,2]
[351200852,1738413036064,-500.0,0.0001671,2]
[351200853,1738413036074,-513.14,0.0001671,2]
[351200854,1738413036085,-500.0,0.0001671,2]
[351200855,1738413036094,-760.43,0.0001671,2]
[351200856,1738413036104,-1453.72,0.0001671,2]
[351200857,1738413036113,-1404.61,0.0001671,2]
[351200858,1738413036123,-947.96,0.0001671,2]
[351200859,1738413036134,-500.0,0.0001671,2]
[351200860,1738413036143,-877.76,0.0001671,2]
[351200861,1738413036154,-500.0,0.0001671,2]
[351200862,1738413036163,-500.0,0.0001671,2]
[351200863,1738413036173,-500.0,0.0001671,2]
[351200864,1738413036183,-2304.75,0.0001671,2]
[351200865,1738413036192,-1247.29,0.0001671,2]
[351200866,1738413036202,-588.44,0.0001671,2]
[351200867,1738413036211,-500.0,0.0001671,2]
[351200868,1738413036220,-500.0,0.0001671,2]
[351200869,1738413036230,-500.0,0.0001671,2]
[351200870,1738413036239,-863.07,0.0001671,2]
[351200871,1738413036249,-500.0,0.00016711,2]
[351200872,1738413036258,-200.0,0.00016711,2]
[351200873,1738413036269,-500.0,0.00016711,2]
[351200874,1738413036278,-430.42574703,0.00016711,2]
[351200875,1738413036287,-549.54709439,0.00016711,2]
[351200876,1738413036297,-500.0,0.00016711,2]
[351200877,1738413036307,-500.0,0.00016711,2]
[351200878,1738413036316,-500.0,0.00016711,2]
[351200879,1738413036326,-443.47220031,0.00016711,2]
[351200880,1738413036335,-605.76,0.00016711,2]
[351200881,1738413036344,-500.0,0.00016711,2]
[351200882,1738413036354,-484.69716076,0.00016711,2]
[351200883,1738413036363,-500.0,0.00016711,2]
[351200884,1738413036373,-500.0,0.00016711,2]
[351200885,1738413036383,-248.24377808,0.00016711,2]
[351200886,1738413036392,-500.0,0.00016711,2]
[351200887,1738413036401,-500.0,0.00016711,2]
[351200888,1738413036411,-500.0,0.00016711,2]
[351200889,1738413036421,-500.0,0.00016711,2]
[351200890,1738413036431,-500.0,0.00016711,2]
[351200891,1738413036440,-500.0,0.00016711,2]
[351200892,1738413036451,-500.0,0.00016711,2]
[351200893,1738413036465,-500.0,0.00016711,2]
[351200894,1738413036475,-500.0,0.00016711,2]
[351200895,1738413036485,-507.68337426,0.00016711,2]
[351200896,1738413036494,-500.0,0.00016711,2]
[351200897,1738413036505,-500.0,0.00016711,2]
[351200898,1738413036515,-500.0,0.00016711,2]
[351200899,1738413036524,-500.0,0.00016711,2]
[351200900,1738413036533,-500.0,0.00016711,2]
[351200901,1738413036542,-500.0,0.00016711,2]
[351200902,1738413036553,-500.0,0.00016711,2]
[351200903,1738413036562,-500.0,0.00016711,2]
[351200904,1738413036571,-500.0,0.00016711,2]
[351200905,1738413036581,-500.0,0.00016711,2]
[351200906,1738413036590,-500.0,0.00016711,2]
[351200907,1738413036600,-356.81431089,0.00016711,2]
[351200908,1738413036610,-500.0,0.00016711,2]
[351200909,1738413036619,-500.0,0.00016711,2]
[351200910,1738413036628,-633.69562422,0.00016711,2]
[351200911,1738413036638,-634.96038925,0.00016711,2]
[351200912,1738413036647,-500.0,0.00016711,2]
[351200913,1738413036656,-500.0,0.00016711,2]
[351200914,1738413036666,-500.0,0.00016711,2]
[351200915,1738413036676,-500.0,0.00016711,2]
[351200916,1738413036685,-500.0,0.00016711,2]
[351200917,1738413036695,-500.0,0.00016711,2]
[351200918,1738413036704,-500.0,0.00016711,2]
[351200919,1738413036713,-500.0,0.00016711,2]
[351200920,1738413036723,-500.0,0.00016711,2]
[351200921,1738413036733,-500.0,0.00016711,2]
[351200922,1738413036743,-500.0,0.00016711,2]
[351200923,1738413036765,-500.0,0.00016711,2]
[351200924,1738413036782,-593.34,0.00016711,2]
[351200925,1738413036792,-500.0,0.00016711,2]
[351200926,1738413036801,-607.68,0.00016711,2]
[351200927,1738413036810,-593.1,0.00016711,2]
[351200928,1738413036819,-509.33,0.00016711,2]
[351200929,1738413036829,-2275.3,0.00016711,2]
[351200930,1738413036839,-568.82,0.00016711,2]
[351200931,1738413036849,-1408.94,0.00016711,2]
[351200932,1738413036858,-671.33,0.00016711,2]
[351200933,1738413036868,-1032.49,0.00016711,2]
[351200934,1738413036877,-538.9,0.00016711,2]
[351200935,1738413036887,-1431.4,0.00016711,2]
[351200936,1738413036896,-500.0,0.00016711,2]
[351200937,1738413036905,-500.0,0.00016711,2]
[351200938,1738413036914,-500.0,0.00016711,2]
[351200939,1738413036924,-500.0,0.00016711,2]
[351200940,1738413036934,-635.48,0.00016711,2]
[351200941,1738413036944,-500.0,0.00016711,2]
[351200942,1738413036954,-500.0,0.00016711,2]
[351200943,1738413036963,-500.0,0.00016711,2]
[351200944,1738413036974,-2360.29,0.00016711,2]
[351200945,1738413036984,-1267.43,0.00016711,2]
[351200946,1738413036994,-795.87,0.00016711,2]
[351200947,1738413037007,-500.0,0.00016711,2]
[351200948,1738413037018,-789.989387,0.00016711,2]
[351200949,1738413037029,-856.8,0.00016711,2]
[351200950,1738413037039,-500.0,0.00016711,2]
[351200951,1738413037048,-500.0,0.00016711,2]
[351200952,1738413037057,-1350.97,0.00016711,2]
[351200953,1738413037067,-2494.3,0.00016711,2]
[351200954,1738413037076,-621.16,0.00016711,2]
[351200955,1738413037086,-500.0,0.00016711,2]
[351200956,1738413037095,-807.394882,0.00016711,2]
[351200957,1738413037105,-1724.22,0.00016711,2]